[Event "Late-Titled-Tuesday-Blitz-March-26-2024"]
[Site "Chess.com"]
[Date "2024.03.26"]
[Round "3"]
[White "Airquake"]
[Black "Siemba"]
[Result "1-0"]
[WhiteElo "2678"]
[BlackElo "2454"]
[TimeControl "180+1"]
[EndTime "14:31:10 PDT"]
[Termination "Airquake won by resignation"]

1. b3 {[%clk 0:03:00.9]} 1... Nf6 {[%clk 0:02:58.6]} 2. Bb2 {[%clk 0:03:01.3]}
2... g6 {[%clk 0:02:59.2]} 3. g3 {[%clk 0:03:01.2]} 3... Bg7 {[%clk 0:02:59.6]}
4. Bg2 {[%clk 0:03:02.1]} 4... O-O {[%clk 0:02:59.9]} 5. Nf3 {[%clk 0:02:59.8]}
5... d6 {[%clk 0:02:59.2]} 6. O-O {[%clk 0:02:58]} 6... c5 {[%clk 0:02:56.1]} 7.
d4 {[%clk 0:02:57.6]} 7... Ne4 {[%clk 0:02:56]} 8. e3 {[%clk 0:02:56.2]} 8...
Nc6 {[%clk 0:02:53.8]} 9. c4 {[%clk 0:02:48.7]} 9... Bg4 {[%clk 0:02:49.9]} 10.
h3 {[%clk 0:02:47]} 10... Bd7 {[%clk 0:02:36.7]} 11. Nc3 {[%clk 0:02:45.5]}
11... f5 {[%clk 0:02:35.3]} 12. Nxe4 {[%clk 0:02:42.5]} 12... fxe4 {[%clk
0:02:35.6]} 13. Ng5 {[%clk 0:02:39.2]} 13... Qc8 {[%clk 0:02:11.6]} 14. Kh2
{[%clk 0:02:30.3]} 14... Rf5 {[%clk 0:01:30.2]} 15. Nxe4 {[%clk 0:02:28.6]}
15... Rh5 {[%clk 0:01:30.6]} 16. h4 {[%clk 0:02:21]} 16... Bg4 {[%clk
0:01:26.8]} 17. Bf3 {[%clk 0:02:16.4]} 17... Bxf3 {[%clk 0:01:20.4]} 18. Qxf3
{[%clk 0:02:14]} 18... cxd4 {[%clk 0:01:19.9]} 19. Ng5 {[%clk 0:02:14.2]} 19...
Ne5 {[%clk 0:01:17.2]} 20. Qd5+ {[%clk 0:02:10.5]} 20... Kh8 {[%clk 0:01:15.4]}
21. exd4 {[%clk 0:02:01.5]} 21... h6 {[%clk 0:00:58.7]} 22. Nf7+ {[%clk
0:01:34]} 22... Nxf7 {[%clk 0:00:57.6]} 23. Qxf7 {[%clk 0:01:34.9]} 23... Qg4
{[%clk 0:00:57.7]} 24. f3 {[%clk 0:01:25.6]} 24... Qg5 {[%clk 0:00:39.2]} 25.
Kg2 {[%clk 0:01:05.2]} 25... Qf6 {[%clk 0:00:20.7]} 26. Qxf6 {[%clk 0:01:02.5]}
26... Bxf6 {[%clk 0:00:21.6]} 27. Rae1 {[%clk 0:00:56.3]} 27... Ra5 {[%clk
0:00:20.2]} 28. a3 {[%clk 0:00:55.3]} 28... Kg7 {[%clk 0:00:19.4]} 29. Rf2
{[%clk 0:00:51.7]} 29... Rc8 {[%clk 0:00:16.5]} 30. a4 {[%clk 0:00:48.2]} 30...
Ra6 {[%clk 0:00:15.2]} 31. d5 {[%clk 0:00:37.3]} 31... Bxb2 {[%clk 0:00:07.2]}
32. Rxb2 {[%clk 0:00:38.2]} 32... Kf7 {[%clk 0:00:06.6]} 33. Rbe2 {[%clk
0:00:38.6]} 33... Rc7 {[%clk 0:00:07.2]} 34. Re3 {[%clk 0:00:38.8]} 34... Rb6
{[%clk 0:00:07.7]} 35. g4 {[%clk 0:00:39.4]} 35... Rb4 {[%clk 0:00:08]} 36. Kg3
{[%clk 0:00:38]} 36... g5 {[%clk 0:00:07.8]} 37. hxg5 {[%clk 0:00:38.2]} 37...
hxg5 {[%clk 0:00:08.7]} 38. Rh1 {[%clk 0:00:38.4]} 38... a6 {[%clk 0:00:08]} 39.
Rh7+ {[%clk 0:00:36.9]} 39... Kf8 {[%clk 0:00:08.4]} 40. Rh5 {[%clk 0:00:35.5]}
40... b5 {[%clk 0:00:08.3]} 41. axb5 {[%clk 0:00:34.8]} 41... axb5 {[%clk
0:00:08.9]} 42. cxb5 {[%clk 0:00:35.3]} 42... Rxb5 {[%clk 0:00:09.5]} 43. Rxg5
{[%clk 0:00:35.8]} 43... Rcc5 {[%clk 0:00:09.6]} 44. Rf5+ {[%clk 0:00:35.6]}
44... Ke8 {[%clk 0:00:09.1]} 45. Rd3 {[%clk 0:00:30.1]} 45... Rb4 {[%clk
0:00:07.9]} 46. g5 {[%clk 0:00:29.9]} 46... Kd7 {[%clk 0:00:06]} 47. g6 {[%clk
0:00:29]} 47... Rc8 {[%clk 0:00:06.7]} 48. Rg5 {[%clk 0:00:24.3]} 48... Rg8
{[%clk 0:00:06.8]} 49. f4 {[%clk 0:00:24.9]} 49... e6 {[%clk 0:00:05.1]} 50.
dxe6+ {[%clk 0:00:24.5]} 50... Kxe6 {[%clk 0:00:06]} 51. f5+ {[%clk 0:00:22]}
51... Kf6 {[%clk 0:00:06.5]} 52. Rh5 {[%clk 0:00:22.7]} 52... d5 {[%clk
0:00:05.7]} 53. Re3 {[%clk 0:00:20.6]} 53... Rb6 {[%clk 0:00:02.5]} 54. b4
{[%clk 0:00:19.5]} 54... d4 {[%clk 0:00:03]} 55. Re4 {[%clk 0:00:20]} 55... Rd6
{[%clk 0:00:03.2]} 56. Kf4 {[%clk 0:00:19.1]} 56... d3 {[%clk 0:00:03]} 57. Rh1
{[%clk 0:00:19.1]} 57... d2 {[%clk 0:00:03]} 58. Rd1 {[%clk 0:00:17.9]} 58...
Rh8 {[%clk 0:00:02.9]} 59. Re6+ {[%clk 0:00:15.3]} 59... Rxe6 {[%clk 0:00:02.9]}
60. fxe6 {[%clk 0:00:16.2]} 60... Kxe6 {[%clk 0:00:02]} 61. Rxd2 {[%clk
0:00:16.3]} 61... Kf6 {[%clk 0:00:02.7]} 62. Rg2 {[%clk 0:00:16.1]} 62... Kg7
{[%clk 0:00:03]} 63. Ke5 {[%clk 0:00:15.5]} 63... Rb8 {[%clk 0:00:03.7]} 64. Rg4
{[%clk 0:00:15.6]} 64... Rb5+ {[%clk 0:00:04.1]} 65. Kd6 {[%clk 0:00:15.8]}
65... Rb6+ {[%clk 0:00:04.3]} 66. Kc7 {[%clk 0:00:15.5]} 66... Rb5 {[%clk
0:00:04.2]} 67. Kc6 {[%clk 0:00:16.1]} 67... Rb8 {[%clk 0:00:04.5]} 68. b5
{[%clk 0:00:16.7]} 68... Rc8+ {[%clk 0:00:04.9]} 69. Kd7 {[%clk 0:00:17]} 69...
Rb8 {[%clk 0:00:04.9]} 70. Kc6 {[%clk 0:00:14.7]} 70... Rc8+ {[%clk 0:00:05.5]}
71. Kb7 {[%clk 0:00:15]} 71... Rc5 {[%clk 0:00:06.2]} 72. b6 {[%clk 0:00:15.2]}
72... Rc1 {[%clk 0:00:06.8]} 73. Kb8 {[%clk 0:00:15.5]} 73... Rb1 {[%clk
0:00:07.2]} 74. b7 {[%clk 0:00:16.1]} 74... Rc1 {[%clk 0:00:07.8]} 75. Ra4
{[%clk 0:00:15.8]} 75... Kxg6 {[%clk 0:00:05.5]} 76. Ka8 {[%clk 0:00:16.3]} 1-0

[Event "Late-Titled-Tuesday-Blitz-March-26-2024"]
[Site "Chess.com"]
[Date "2024.03.26"]
[Round "3"]
[White "Heliosis11"]
[Black "Mikayel99"]
[Result "1/2-1/2"]
[WhiteElo "2304"]
[BlackElo "2556"]
[TimeControl "180+1"]
[EndTime "14:31:11 PDT"]
[Termination "Game drawn by repetition"]

1. e4 {[%clk 0:03:00.9]} 1... e6 {[%clk 0:02:59.2]} 2. d4 {[%clk 0:03:00.5]}
2... d5 {[%clk 0:02:59.9]} 3. Nd2 {[%clk 0:03:00.9]} 3... c5 {[%clk 0:02:59]} 4.
exd5 {[%clk 0:02:54.6]} 4... Qxd5 {[%clk 0:02:58.5]} 5. c4 {[%clk 0:02:53.7]}
5... Qd8 {[%clk 0:02:55.3]} 6. Ngf3 {[%clk 0:02:46]} 6... Nf6 {[%clk 0:02:52.6]}
7. Nb3 {[%clk 0:02:34.7]} 7... cxd4 {[%clk 0:02:51.9]} 8. Nbxd4 {[%clk
0:02:35.6]} 8... e5 {[%clk 0:02:42.4]} 9. Nb5 {[%clk 0:02:27.7]} 9... Bb4+
{[%clk 0:02:39.3]} 10. Bd2 {[%clk 0:02:27.3]} 10... Bxd2+ {[%clk 0:02:36.2]} 11.
Qxd2 {[%clk 0:02:27.6]} 11... Qxd2+ {[%clk 0:02:30.8]} 12. Nxd2 {[%clk
0:02:27.7]} 12... Na6 {[%clk 0:02:29.4]} 13. O-O-O {[%clk 0:02:23.2]} 13... O-O
{[%clk 0:02:29.3]} 14. Bd3 {[%clk 0:02:20.2]} 14... Bd7 {[%clk 0:02:17.2]} 15.
Nc3 {[%clk 0:02:16.7]} 15... Nc5 {[%clk 0:02:06.7]} 16. Bb1 {[%clk 0:02:16.3]}
16... Rfd8 {[%clk 0:01:54.8]} 17. Nde4 {[%clk 0:02:15.8]} 17... Nfxe4 {[%clk
0:01:46.1]} 18. Nxe4 {[%clk 0:02:15.6]} 18... Ne6 {[%clk 0:01:43.9]} 19. Rhe1
{[%clk 0:02:08.4]} 19... Nd4 {[%clk 0:01:39.3]} 20. f4 {[%clk 0:02:06.6]} 20...
Bg4 {[%clk 0:01:36.4]} 21. Rd2 {[%clk 0:02:05.2]} 21... exf4 {[%clk 0:01:23.3]}
22. Rf2 {[%clk 0:01:54.9]} 22... Rac8 {[%clk 0:01:10.9]} 23. b3 {[%clk
0:01:51.3]} 23... b5 {[%clk 0:01:07]} 24. Rxf4 {[%clk 0:01:50.7]} 24... Ne2+
{[%clk 0:01:02.5]} 25. Rxe2 {[%clk 0:01:50.5]} 25... Bxe2 {[%clk 0:01:03.4]} 26.
c5 {[%clk 0:01:50.8]} 26... f5 {[%clk 0:00:56.7]} 27. Rxf5 {[%clk 0:01:32.5]}
27... Rd1+ {[%clk 0:00:56.6]} 28. Kc2 {[%clk 0:01:33.1]} 28... Rxb1 {[%clk
0:00:55.5]} 29. Nd6 {[%clk 0:01:33.6]} 29... Rd8 {[%clk 0:00:22.6]} 30. Re5
{[%clk 0:01:17.5]} 30... Ra1 {[%clk 0:00:22.9]} 31. Rxe2 {[%clk 0:01:13.3]}
31... Rxa2+ {[%clk 0:00:23.2]} 32. Kd3 {[%clk 0:01:13.7]} 32... Rxe2 {[%clk
0:00:23.9]} 33. Kxe2 {[%clk 0:01:14.6]} 33... Kf8 {[%clk 0:00:20.5]} 34. Ke3
{[%clk 0:01:14.9]} 34... Ke7 {[%clk 0:00:20.9]} 35. Nxb5 {[%clk 0:01:15.2]}
35... Kd7 {[%clk 0:00:17.9]} 36. Nxa7 {[%clk 0:01:13.3]} 36... Ra8 {[%clk
0:00:18.3]} 37. Nb5 {[%clk 0:01:13.5]} 37... Kc6 {[%clk 0:00:19.1]} 38. Nd4+
{[%clk 0:01:11.6]} 38... Kxc5 {[%clk 0:00:16.9]} 39. Ne6+ {[%clk 0:01:12]} 39...
Kd5 {[%clk 0:00:15.9]} 40. Nxg7 {[%clk 0:01:11.7]} 40... Ke5 {[%clk 0:00:16.4]}
41. Nh5 {[%clk 0:01:09.4]} 41... Rb8 {[%clk 0:00:16.1]} 42. Kf3 {[%clk 0:01:03]}
42... Rxb3+ {[%clk 0:00:13.7]} 43. Kg4 {[%clk 0:01:03.4]} 43... h6 {[%clk
0:00:12.9]} 44. Nf4 {[%clk 0:01:00.6]} 44... Kf6 {[%clk 0:00:13.2]} 45. g3
{[%clk 0:00:58.2]} 45... Rb5 {[%clk 0:00:12.1]} 46. h4 {[%clk 0:00:57.7]} 46...
Ra5 {[%clk 0:00:11.3]} 47. Nh5+ {[%clk 0:00:55.8]} 47... Kf7 {[%clk 0:00:10.1]}
48. Nf4 {[%clk 0:00:55.7]} 48... Kg7 {[%clk 0:00:10.8]} 49. h5 {[%clk
0:00:50.7]} 49... Rg5+ {[%clk 0:00:10.2]} 50. Kh4 {[%clk 0:00:50.8]} 50... Kf6
{[%clk 0:00:10.8]} 51. Nh3 {[%clk 0:00:46]} 51... Ra5 {[%clk 0:00:10.2]} 52. Nf4
{[%clk 0:00:46.5]} 52... Ra4 {[%clk 0:00:10.3]} 53. Kg4 {[%clk 0:00:46.7]} 53...
Rb4 {[%clk 0:00:10.2]} 54. Kh4 {[%clk 0:00:44]} 54... Kf5 {[%clk 0:00:10.9]} 55.
Kh3 {[%clk 0:00:44.5]} 55... Kg5 {[%clk 0:00:10.7]} 56. Kg2 {[%clk 0:00:40]}
56... Kg4 {[%clk 0:00:11.3]} 57. Kf2 {[%clk 0:00:37.6]} 57... Rb2+ {[%clk
0:00:09.9]} 58. Ne2 {[%clk 0:00:37.9]} 58... Ra2 {[%clk 0:00:10.1]} 59. Ke3
{[%clk 0:00:37.6]} 59... Kxh5 {[%clk 0:00:10.3]} 60. Kf3 {[%clk 0:00:32.9]}
60... Kg5 {[%clk 0:00:09.7]} 61. Nf4 {[%clk 0:00:20.2]} 61... Ra3+ {[%clk
0:00:03.9]} 62. Kf2 {[%clk 0:00:20.6]} 62... Kg4 {[%clk 0:00:04.3]} 63. Ne2
{[%clk 0:00:21]} 63... Ra2 {[%clk 0:00:04.3]} 64. Ke3 {[%clk 0:00:21.5]} 64...
Ra3+ {[%clk 0:00:03.9]} 65. Kf2 {[%clk 0:00:22.1]} 65... h5 {[%clk 0:00:04.2]}
66. Kg2 {[%clk 0:00:21.8]} 66... Ra2 {[%clk 0:00:04.1]} 67. Kf2 {[%clk
0:00:22.3]} 67... Rb2 {[%clk 0:00:04.9]} 68. Ke3 {[%clk 0:00:22.5]} 68... Rb3+
{[%clk 0:00:04.9]} 69. Kf2 {[%clk 0:00:22.9]} 69... Rb8 {[%clk 0:00:05.8]} 70.
Ke3 {[%clk 0:00:21]} 70... Re8+ {[%clk 0:00:06.1]} 71. Kf2 {[%clk 0:00:21.2]}
71... Rf8+ {[%clk 0:00:06.8]} 72. Kg2 {[%clk 0:00:21.5]} 72... Rf7 {[%clk
0:00:07]} 73. Ng1 {[%clk 0:00:15]} 73... Rf6 {[%clk 0:00:06]} 74. Ne2 {[%clk
0:00:14.7]} 74... Rf3 {[%clk 0:00:05.8]} 75. Kg1 {[%clk 0:00:12.9]} 75... Re3
{[%clk 0:00:05.7]} 76. Kf2 {[%clk 0:00:13.2]} 76... Ra3 {[%clk 0:00:06.3]} 77.
Kg2 {[%clk 0:00:13.3]} 77... Rb3 {[%clk 0:00:06.7]} 78. Kf2 {[%clk 0:00:13]}
78... Kh3 {[%clk 0:00:06.7]} 79. Nf4+ {[%clk 0:00:12.7]} 79... Kg4 {[%clk
0:00:07.4]} 80. Ne2 {[%clk 0:00:12]} 1/2-1/2

[Event "Late-Titled-Tuesday-Blitz-March-26-2024"]
[Site "Chess.com"]
[Date "2024.03.26"]
[Round "3"]
[White "Slovineanu"]
[Black "TheMagician"]
[Result "1-0"]
[WhiteElo "2514"]
[BlackElo "2276"]
[TimeControl "180+1"]
[EndTime "14:31:15 PDT"]
[Termination "Slovineanu won on time"]

1. d4 {[%clk 0:02:58.9]} 1... Nf6 {[%clk 0:02:58.6]} 2. Nf3 {[%clk 0:02:59]}
2... d6 {[%clk 0:02:56.4]} 3. Nc3 {[%clk 0:02:57.9]} 3... g6 {[%clk 0:02:56.5]}
4. e4 {[%clk 0:02:57.7]} 4... Bg7 {[%clk 0:02:56.7]} 5. Be3 {[%clk 0:02:58.1]}
5... Ng4 {[%clk 0:02:55.7]} 6. Bf4 {[%clk 0:02:55.1]} 6... Nc6 {[%clk
0:02:48.4]} 7. h3 {[%clk 0:02:51.5]} 7... Nf6 {[%clk 0:02:42.2]} 8. e5 {[%clk
0:02:49.7]} 8... Nd7 {[%clk 0:02:38.8]} 9. Qe2 {[%clk 0:02:43.1]} 9... Nb6
{[%clk 0:02:29.2]} 10. O-O-O {[%clk 0:02:41.5]} 10... d5 {[%clk 0:02:16.6]} 11.
Qe3 {[%clk 0:02:37.7]} 11... h6 {[%clk 0:02:12]} 12. g4 {[%clk 0:02:34.7]} 12...
a6 {[%clk 0:02:07]} 13. Bd3 {[%clk 0:02:29.5]} 13... e6 {[%clk 0:01:59.9]} 14.
h4 {[%clk 0:02:26.6]} 14... h5 {[%clk 0:01:57.3]} 15. gxh5 {[%clk 0:02:11.9]}
15... Rxh5 {[%clk 0:01:55.9]} 16. Ng5 {[%clk 0:02:11.1]} 16... Ne7 {[%clk
0:01:38.7]} 17. Be2 {[%clk 0:02:04.9]} 17... Nf5 {[%clk 0:01:29.1]} 18. Qd3
{[%clk 0:01:55.7]} 18... Rxh4 {[%clk 0:01:24.1]} 19. Rxh4 {[%clk 0:01:55.2]}
19... Nxh4 {[%clk 0:01:23.8]} 20. Qh3 {[%clk 0:01:51.4]} 20... Nf5 {[%clk
0:01:12.3]} 21. Qh7 {[%clk 0:01:50.4]} 21... Qe7 {[%clk 0:01:11.7]} 22. a4
{[%clk 0:01:11.6]} 22... Bd7 {[%clk 0:01:08.5]} 23. a5 {[%clk 0:01:11.2]} 23...
Na4 {[%clk 0:01:08.3]} 24. Nxa4 {[%clk 0:01:01.3]} 24... Bxa4 {[%clk 0:01:07.7]}
25. Bd3 {[%clk 0:00:58.5]} 25... Qf8 {[%clk 0:00:51]} 26. Bxf5 {[%clk
0:00:31.4]} 26... gxf5 {[%clk 0:00:50.6]} 27. Rg1 {[%clk 0:00:29]} 27... Bh6
{[%clk 0:00:35.7]} 28. Nxe6 {[%clk 0:00:25.4]} 28... Bxf4+ {[%clk 0:00:30]} 29.
Nxf4 {[%clk 0:00:25.3]} 29... O-O-O {[%clk 0:00:28.5]} 30. Qxf5+ {[%clk
0:00:24.9]} 30... Kb8 {[%clk 0:00:27.3]} 31. c3 {[%clk 0:00:19.8]} 31... Bb3
{[%clk 0:00:24.9]} 32. Rh1 {[%clk 0:00:13.5]} 32... Qe8 {[%clk 0:00:24.5]} 33.
Rh7 {[%clk 0:00:11.7]} 33... Qa4 {[%clk 0:00:24.1]} 34. Qxf7 {[%clk 0:00:12.1]}
34... Qa1+ {[%clk 0:00:23.2]} 35. Kd2 {[%clk 0:00:12.4]} 35... Rc8 {[%clk
0:00:18.4]} 36. Nd3 {[%clk 0:00:11.7]} 36... Qd1+ {[%clk 0:00:16.9]} 37. Ke3
{[%clk 0:00:11.9]} 37... Bc4 {[%clk 0:00:16.9]} 38. Qf5 {[%clk 0:00:11.5]} 38...
Qf1 {[%clk 0:00:10]} 39. e6 {[%clk 0:00:10.8]} 39... Re8 {[%clk 0:00:09.7]} 40.
e7 {[%clk 0:00:10.6]} 40... Bxd3 {[%clk 0:00:09]} 41. Qxd3 {[%clk 0:00:10.2]}
41... Qc1+ {[%clk 0:00:04.4]} 42. Kf3 {[%clk 0:00:09.6]} 42... Qg5 {[%clk
0:00:04]} 43. Ke2 {[%clk 0:00:05.5]} 43... Rxe7+ {[%clk 0:00:03.8]} 44. Rxe7
{[%clk 0:00:05]} 44... Qxe7+ {[%clk 0:00:04]} 45. Qe3 {[%clk 0:00:05.3]} 45...
Qf7 {[%clk 0:00:04]} 46. Qe5 {[%clk 0:00:04.7]} 46... Ka7 {[%clk 0:00:04]} 47.
f4 {[%clk 0:00:04.5]} 47... c6 {[%clk 0:00:04.4]} 48. f5 {[%clk 0:00:04.4]}
48... Qh5+ {[%clk 0:00:05.1]} 49. Ke3 {[%clk 0:00:03.3]} 49... Qh4 {[%clk
0:00:06]} 50. f6 {[%clk 0:00:03.1]} 50... Qe1+ {[%clk 0:00:06.4]} 51. Kf4 {[%clk
0:00:03.2]} 51... Qf2+ {[%clk 0:00:06.2]} 52. Kg5 {[%clk 0:00:03.5]} 52... Qg2+
{[%clk 0:00:05.5]} 53. Kh6 {[%clk 0:00:03.7]} 53... Qg8 {[%clk 0:00:06.1]} 54.
Qe7 {[%clk 0:00:02.7]} 54... Qg3 {[%clk 0:00:05.5]} 55. f7 {[%clk 0:00:02.5]}
55... Qf4+ {[%clk 0:00:05.5]} 56. Kg7 {[%clk 0:00:02.3]} 56... Qg4+ {[%clk
0:00:05.6]} 57. Kf8 {[%clk 0:00:02.5]} 57... Qc8+ {[%clk 0:00:04.8]} 58. Kg7
{[%clk 0:00:02.5]} 58... Qg4+ {[%clk 0:00:04.7]} 59. Kf8 {[%clk 0:00:02.6]}
59... Qc8+ {[%clk 0:00:04.7]} 60. Qe8 {[%clk 0:00:03]} 60... Qf5 {[%clk
0:00:04.5]} 61. Ke7 {[%clk 0:00:03]} 61... Qe4+ {[%clk 0:00:03.9]} 62. Kd8
{[%clk 0:00:02.4]} 62... Qh4+ {[%clk 0:00:03.3]} 63. Qe7 {[%clk 0:00:02.6]}
63... Qg3 {[%clk 0:00:01.4]} 64. f8=Q {[%clk 0:00:02.7]} 1-0

[Event "Late-Titled-Tuesday-Blitz-March-26-2024"]
[Site "Chess.com"]
[Date "2024.03.26"]
[Round "3"]
[White "carokannlover213"]
[Black "Rud_Makarian"]
[Result "0-1"]
[WhiteElo "2833"]
[BlackElo "3114"]
[TimeControl "180+1"]
[EndTime "14:31:19 PDT"]
[Termination "Rud_Makarian won by checkmate"]

1. e4 {[%clk 0:03:00.9]} 1... c5 {[%clk 0:03:00.1]} 2. Nf3 {[%clk 0:03:01.6]}
2... d6 {[%clk 0:03:00.4]} 3. d4 {[%clk 0:03:02.3]} 3... cxd4 {[%clk 0:03:01.3]}
4. Nxd4 {[%clk 0:03:03.2]} 4... Nf6 {[%clk 0:03:02]} 5. Nc3 {[%clk 0:03:03.7]}
5... a6 {[%clk 0:03:02.7]} 6. h3 {[%clk 0:03:04.4]} 6... e6 {[%clk 0:03:02.8]}
7. g4 {[%clk 0:03:04.2]} 7... h6 {[%clk 0:03:03.2]} 8. Bg2 {[%clk 0:03:03.7]}
8... Be7 {[%clk 0:03:03.4]} 9. h4 {[%clk 0:03:02.5]} 9... Nfd7 {[%clk
0:02:41.8]} 10. g5 {[%clk 0:03:00.7]} 10... hxg5 {[%clk 0:02:37.7]} 11. hxg5
{[%clk 0:02:58.7]} 11... Rxh1+ {[%clk 0:02:37.1]} 12. Bxh1 {[%clk 0:02:59.6]}
12... g6 {[%clk 0:02:31.6]} 13. f4 {[%clk 0:02:40.9]} 13... Nc6 {[%clk
0:02:31.9]} 14. Be3 {[%clk 0:02:20.1]} 14... e5 {[%clk 0:02:23.4]} 15. Nxc6
{[%clk 0:02:14.5]} 15... bxc6 {[%clk 0:02:24.3]} 16. Qd2 {[%clk 0:02:09.1]}
16... exf4 {[%clk 0:02:17.6]} 17. Bxf4 {[%clk 0:02:08.4]} 17... Ne5 {[%clk
0:02:09.8]} 18. O-O-O {[%clk 0:02:07]} 18... Bg4 {[%clk 0:02:09]} 19. Rg1 {[%clk
0:02:02.1]} 19... Bh5 {[%clk 0:01:50.2]} 20. Qd4 {[%clk 0:01:51.9]} 20... Qa5
{[%clk 0:01:42.6]} 21. Bd2 {[%clk 0:01:40.8]} 21... Qc7 {[%clk 0:01:37.7]} 22.
Qa4 {[%clk 0:01:38.8]} 22... Qb6 {[%clk 0:01:33.7]} 23. Re1 {[%clk 0:01:17]}
23... Kf8 {[%clk 0:01:25.7]} 24. Be3 {[%clk 0:01:15.2]} 24... Qb7 {[%clk
0:01:25.8]} 25. Qd4 {[%clk 0:01:11.3]} 25... a5 {[%clk 0:01:22.6]} 26. Bf4
{[%clk 0:01:07.7]} 26... Rb8 {[%clk 0:00:54.5]} 27. b3 {[%clk 0:00:44.6]} 27...
Qb4 {[%clk 0:00:54.3]} 28. Bxe5 {[%clk 0:00:32.8]} 28... dxe5 {[%clk 0:00:55.2]}
29. Qxe5 {[%clk 0:00:33.7]} 29... Kg8 {[%clk 0:00:54.2]} 30. Kb1 {[%clk
0:00:21.8]} 30... Bf8 {[%clk 0:00:47.5]} 31. a3 {[%clk 0:00:17.1]} 31... Qb7
{[%clk 0:00:35.1]} 32. Na4 {[%clk 0:00:16.4]} 32... Bxa3 {[%clk 0:00:31.6]} 33.
Qf4 {[%clk 0:00:14.6]} 33... Rd8 {[%clk 0:00:20.7]} 34. e5 {[%clk 0:00:12]}
34... Bb4 {[%clk 0:00:20]} 35. Rf1 {[%clk 0:00:09.3]} 35... Qe7 {[%clk
0:00:20.3]} 36. Nb2 {[%clk 0:00:08]} 36... Bd2 {[%clk 0:00:20.4]} 37. Qf2 {[%clk
0:00:06.1]} 37... Bxg5 {[%clk 0:00:18.8]} 38. Bxc6 {[%clk 0:00:06.6]} 38... Bg4
{[%clk 0:00:17.9]} 39. Nd3 {[%clk 0:00:06.6]} 39... Bf5 {[%clk 0:00:17.5]} 40.
Qf3 {[%clk 0:00:06.9]} 40... a4 {[%clk 0:00:13.6]} 41. Be4 {[%clk 0:00:05.8]}
41... Bxe4 {[%clk 0:00:12.7]} 42. Qxe4 {[%clk 0:00:06.7]} 42... axb3 {[%clk
0:00:13.2]} 43. cxb3 {[%clk 0:00:06.2]} 43... Qd7 {[%clk 0:00:12.3]} 44. Rf3
{[%clk 0:00:04.7]} 44... Qb5 {[%clk 0:00:12.4]} 45. b4 {[%clk 0:00:03.2]} 45...
Qa4 {[%clk 0:00:11.7]} 46. Nb2 {[%clk 0:00:02]} 46... Qa7 {[%clk 0:00:08.4]} 47.
e6 {[%clk 0:00:01.9]} 47... Qg1+ {[%clk 0:00:08.1]} 48. Ka2 {[%clk 0:00:02.3]}
48... f5 {[%clk 0:00:07.1]} 49. Qc4 {[%clk 0:00:01.8]} 49... Kg7 {[%clk
0:00:06.7]} 50. e7 {[%clk 0:00:01.7]} 50... Bxe7 {[%clk 0:00:06.7]} 51. Rd3
{[%clk 0:00:02.6]} 51... Ra8+ {[%clk 0:00:06.6]} 52. Kb3 {[%clk 0:00:03]} 52...
Qa7 {[%clk 0:00:06.8]} 53. Qd4+ {[%clk 0:00:03.1]} 53... Qxd4 {[%clk 0:00:07.1]}
54. Rxd4 {[%clk 0:00:04]} 54... g5 {[%clk 0:00:06.8]} 55. Nc4 {[%clk 0:00:03.6]}
55... Bf6 {[%clk 0:00:05.8]} 56. Rd5 {[%clk 0:00:03]} 56... Kg6 {[%clk
0:00:04.9]} 57. Ne3 {[%clk 0:00:01.7]} 57... f4 {[%clk 0:00:05.2]} 58. Ng4
{[%clk 0:00:02.1]} 58... Bg7 {[%clk 0:00:05.4]} 59. b5 {[%clk 0:00:01.6]} 59...
Kh5 {[%clk 0:00:05.9]} 60. Nf2 {[%clk 0:00:01.8]} 60... Kh4 {[%clk 0:00:05.7]}
61. Rd4 {[%clk 0:00:02.3]} 61... Bxd4 {[%clk 0:00:05.5]} 62. Ne4 {[%clk
0:00:02.9]} 62... g4 {[%clk 0:00:05.5]} 63. Kc4 {[%clk 0:00:03.8]} 63... Be3
{[%clk 0:00:05.4]} 64. Kd3 {[%clk 0:00:04.1]} 64... g3 {[%clk 0:00:05.6]} 65.
Nd6 {[%clk 0:00:04.1]} 65... g2 {[%clk 0:00:05.8]} 66. b6 {[%clk 0:00:03.1]}
66... Bxb6 {[%clk 0:00:05.2]} 67. Nc4 {[%clk 0:00:03]} 67... g1=Q {[%clk
0:00:05.2]} 68. Ke4 {[%clk 0:00:03.4]} 68... Qd4+ {[%clk 0:00:04.9]} 69. Kf5
{[%clk 0:00:04.3]} 69... Rf8+ {[%clk 0:00:05.1]} 70. Ke6 {[%clk 0:00:02.9]}
70... Qxc4+ {[%clk 0:00:05.1]} 71. Ke7 {[%clk 0:00:03.3]} 71... Bc5+ {[%clk
0:00:04.7]} 72. Kd7 {[%clk 0:00:03.3]} 72... Qd5+ {[%clk 0:00:05]} 73. Kc7
{[%clk 0:00:03.5]} 73... Rf7+ {[%clk 0:00:05.4]} 74. Kc8 {[%clk 0:00:04.4]}
74... Qa8# {[%clk 0:00:05.6]} 0-1